[Event "*** Titled Tuesday Blitz"]
[Site "Chess.com"]
[Date "2020.04.28"]
[Round "8"]
[White "Juanovic"]
[Black "isla88"]
[Result "0-1"]
[WhiteElo "2160"]
[BlackElo "2317"]
[TimeControl "180+1"]
[EndTime "11:30:48 PDT"]
[Termination "isla88 won by resignation"]

1. e4 {[%clk 0:03:00.9]} 1... c5 {[%clk 0:03:00.9]} 2. Nf3 {[%clk 0:03:01]} 2...
Nc6 {[%clk 0:02:53.9]} 3. Nc3 {[%clk 0:03:00.2]} 3... e5 {[%clk 0:02:52.8]} 4.
Bc4 {[%clk 0:02:56.3]} 4... g6 {[%clk 0:02:49.1]} 5. d3 {[%clk 0:02:56.5]} 5...
h6 {[%clk 0:02:49]} 6. h4 {[%clk 0:02:53.7]} 6... Bg7 {[%clk 0:02:48.7]} 7. h5
{[%clk 0:02:53.1]} 7... g5 {[%clk 0:02:49.1]} 8. Nd5 {[%clk 0:02:51.2]} 8...
Nge7 {[%clk 0:02:40.3]} 9. c3 {[%clk 0:02:50.9]} 9... Nxd5 {[%clk 0:02:40.3]}
10. Bxd5 {[%clk 0:02:50.9]} 10... Ne7 {[%clk 0:02:39.4]} 11. Bb3 {[%clk
0:02:50.6]} 11... O-O {[%clk 0:02:36]} 12. d4 {[%clk 0:02:50.9]} 12... cxd4
{[%clk 0:02:36]} 13. cxd4 {[%clk 0:02:50.9]} 13... exd4 {[%clk 0:02:33.3]} 14.
Nxd4 {[%clk 0:02:47.7]} 14... d5 {[%clk 0:02:32.3]} 15. exd5 {[%clk 0:02:42.1]}
15... Nxd5 {[%clk 0:02:31.7]} 16. O-O {[%clk 0:02:41.3]} 16... Nf4 {[%clk
0:02:26.1]} 17. Be3 {[%clk 0:02:29.8]} 17... Bxd4 {[%clk 0:02:18.7]} 18. Bxd4
{[%clk 0:02:22.6]} 18... Qxd4 {[%clk 0:02:17.2]} 19. Qxd4 {[%clk 0:02:21.4]}
19... Ne2+ {[%clk 0:02:16.3]} 20. Kh2 {[%clk 0:02:22.3]} 20... Nxd4 {[%clk
0:02:16.5]} 21. Bc4 {[%clk 0:02:19.1]} 21... Bg4 {[%clk 0:02:11.3]} 0-1

[Event "*** Titled Tuesday Blitz"]
[Site "Chess.com"]
[Date "2020.04.28"]
[Round "8"]
[White "ManuDavid2910"]
[Black "pheonixking2000"]
[Result "0-1"]
[WhiteElo "2650"]
[BlackElo "2819"]
[TimeControl "180+1"]
[EndTime "11:31:48 PDT"]
[Termination "pheonixking2000 won by resignation"]

1. e4 {[%clk 0:03:00.9]} 1... e6 {[%clk 0:02:57.7]} 2. Nf3 {[%clk 0:03:01.1]}
2... d5 {[%clk 0:02:58.6]} 3. Nc3 {[%clk 0:03:01.1]} 3... Nf6 {[%clk 0:02:57.9]}
4. e5 {[%clk 0:03:00.5]} 4... Nfd7 {[%clk 0:02:58.4]} 5. d4 {[%clk 0:03:00.3]}
5... c5 {[%clk 0:02:59.3]} 6. dxc5 {[%clk 0:03:01.2]} 6... Nc6 {[%clk
0:03:00.2]} 7. Bf4 {[%clk 0:03:01]} 7... Nxc5 {[%clk 0:03:00.5]} 8. Bb5 {[%clk
0:03:00.7]} 8... Be7 {[%clk 0:02:59.7]} 9. Nd4 {[%clk 0:03:00.3]} 9... Bd7
{[%clk 0:02:59.6]} 10. O-O {[%clk 0:02:56.7]} 10... O-O {[%clk 0:02:57.1]} 11.
Re1 {[%clk 0:02:56.7]} 11... Nxd4 {[%clk 0:02:54.2]} 12. Qxd4 {[%clk 0:02:57.6]}
12... a6 {[%clk 0:02:54.3]} 13. Bxd7 {[%clk 0:02:55.5]} 13... Qxd7 {[%clk
0:02:55.2]} 14. Rad1 {[%clk 0:02:55.9]} 14... Rac8 {[%clk 0:02:53.6]} 15. Qe3
{[%clk 0:02:46.4]} 15... Qc6 {[%clk 0:02:50.3]} 16. Qg3 {[%clk 0:02:44.9]} 16...
Rfd8 {[%clk 0:02:49]} 17. Bh6 {[%clk 0:02:42.2]} 17... Bf8 {[%clk 0:02:49.5]}
18. Bg5 {[%clk 0:02:42.4]} 18... Rd7 {[%clk 0:02:46.3]} 19. Rd4 {[%clk 0:02:39]}
19... Ne4 {[%clk 0:02:41.7]} 20. Nxe4 {[%clk 0:02:13]} 20... dxe4 {[%clk
0:02:42.6]} 21. Rxd7 {[%clk 0:01:59.5]} 21... Qxd7 {[%clk 0:02:43.5]} 22. c3
{[%clk 0:01:55.8]} 22... Qa4 {[%clk 0:02:44]} 23. a3 {[%clk 0:01:53]} 23... Qc2
{[%clk 0:02:44.6]} 24. Bc1 {[%clk 0:01:50.6]} 24... Rd8 {[%clk 0:02:42.9]} 25.
Qe3 {[%clk 0:01:41.9]} 25... Rd1 {[%clk 0:02:34.1]} 26. Kf1 {[%clk 0:01:41.8]}
26... Bc5 {[%clk 0:02:15]} 0-1

[Event "*** Titled Tuesday Blitz"]
[Site "Chess.com"]
[Date "2020.04.28"]
[Round "8"]
[White "maziarbagheri"]
[Black "emperor87"]
[Result "1-0"]
[WhiteElo "2426"]
[BlackElo "2583"]
[TimeControl "180+1"]
[EndTime "11:31:56 PDT"]
[Termination "maziarbagheri won by resignation"]

1. Nf3 {[%clk 0:03:00.9]} 1... d5 {[%clk 0:02:59.5]} 2. d4 {[%clk 0:03:00.3]}
2... g6 {[%clk 0:02:59.7]} 3. c4 {[%clk 0:03:00.8]} 3... c6 {[%clk 0:02:58.2]}
4. Nc3 {[%clk 0:03:00.9]} 4... dxc4 {[%clk 0:02:57.6]} 5. a4 {[%clk 0:02:58.8]}
5... Bg7 {[%clk 0:02:55.4]} 6. e3 {[%clk 0:02:57.4]} 6... Bg4 {[%clk 0:02:54.3]}
7. Bxc4 {[%clk 0:02:56.7]} 7... Nf6 {[%clk 0:02:53.4]} 8. Bxf7+ {[%clk
0:02:55.9]} 8... Kxf7 {[%clk 0:02:46.9]} 9. Ne5+ {[%clk 0:02:56.4]} 9... Ke8
{[%clk 0:02:46.2]} 10. Nxg4 {[%clk 0:02:56.8]} 10... Nbd7 {[%clk 0:02:46.1]} 11.
O-O {[%clk 0:02:55.3]} 11... h5 {[%clk 0:02:45.4]} 12. Nxf6+ {[%clk 0:02:54.7]}
12... exf6 {[%clk 0:02:44]} 13. Qb3 {[%clk 0:02:50]} 13... Rb8 {[%clk
0:02:39.1]} 14. e4 {[%clk 0:02:48.6]} 14... Qe7 {[%clk 0:02:37.2]} 15. Re1
{[%clk 0:02:44.1]} 15... g5 {[%clk 0:02:35.2]} 16. a5 {[%clk 0:02:34.5]} 16...
h4 {[%clk 0:02:30.8]} 17. h3 {[%clk 0:02:33.4]} 17... f5 {[%clk 0:02:20.3]} 18.
e5 {[%clk 0:02:25.5]} 18... g4 {[%clk 0:02:17.3]} 19. Bf4 {[%clk 0:02:21.8]}
19... Nf8 {[%clk 0:02:06.3]} 20. d5 {[%clk 0:02:21.3]} 20... gxh3 {[%clk
0:02:04.7]} 21. e6 {[%clk 0:02:17.9]} 21... Rd8 {[%clk 0:02:00]} 22. d6 {[%clk
0:02:15.3]} 22... Rxd6 {[%clk 0:02:00.1]} 23. Bxd6 {[%clk 0:02:14.4]} 23... Qxd6
{[%clk 0:02:00.3]} 24. Qxb7 {[%clk 0:02:10.7]} 24... Nxe6 {[%clk 0:01:46.6]} 25.
Rad1 {[%clk 0:02:06.7]} 25... Qe7 {[%clk 0:01:46.5]} 26. Qxc6+ {[%clk
0:02:03.9]} 26... Kf8 {[%clk 0:01:45.8]} 27. Rxe6 {[%clk 0:01:57.4]} 1-0

[Event "*** Titled Tuesday Blitz"]
[Site "Chess.com"]
[Date "2020.04.28"]
[Round "8"]
[White "Sandstad"]
[Black "jacky72"]
[Result "0-1"]
[WhiteElo "2454"]
[BlackElo "2696"]
[TimeControl "180+1"]
[EndTime "11:32:01 PDT"]
[Termination "jacky72 won by resignation"]

1. d4 {[%clk 0:03:00.9]} 1... Nf6 {[%clk 0:02:59.3]} 2. Bf4 {[%clk 0:03:01]}
2... g6 {[%clk 0:03:00.2]} 3. Nc3 {[%clk 0:03:00.2]} 3... d5 {[%clk 0:02:59.9]}
4. e3 {[%clk 0:02:59.6]} 4... Bg7 {[%clk 0:03:00.8]} 5. Be2 {[%clk 0:02:59.8]}
5... b6 {[%clk 0:02:58.9]} 6. Nf3 {[%clk 0:02:58.8]} 6... c5 {[%clk 0:02:59.1]}
7. Ne5 {[%clk 0:02:57.7]} 7... O-O {[%clk 0:02:58.9]} 8. h4 {[%clk 0:02:57.3]}
8... cxd4 {[%clk 0:02:58.4]} 9. exd4 {[%clk 0:02:57.3]} 9... Ne4 {[%clk
0:02:57.6]} 10. h5 {[%clk 0:02:51.1]} 10... Nxc3 {[%clk 0:02:57.3]} 11. bxc3
{[%clk 0:02:52]} 11... f6 {[%clk 0:02:57]} 12. Nd3 {[%clk 0:02:38.6]} 12... Nc6
{[%clk 0:02:52.6]} 13. hxg6 {[%clk 0:02:37.3]} 13... hxg6 {[%clk 0:02:53.5]} 14.
Qd2 {[%clk 0:02:20.6]} 14... e5 {[%clk 0:02:52]} 15. Bh6 {[%clk 0:02:20.7]}
15... Qe7 {[%clk 0:02:48.8]} 16. dxe5 {[%clk 0:01:55.7]} 16... fxe5 {[%clk
0:02:45.6]} 17. Bxg7 {[%clk 0:01:23.4]} 17... Qxg7 {[%clk 0:02:46.5]} 18. Qh6
{[%clk 0:01:24]} 18... e4 {[%clk 0:02:41.5]} 19. Qxg7+ {[%clk 0:01:23.1]} 19...
Kxg7 {[%clk 0:02:42.4]} 20. Nb4 {[%clk 0:01:23.3]} 20... Nxb4 {[%clk 0:02:39.3]}
21. cxb4 {[%clk 0:01:24.2]} 21... a5 {[%clk 0:02:40]} 22. b5 {[%clk 0:01:21.1]}
22... Be6 {[%clk 0:02:39.5]} 23. f3 {[%clk 0:01:18.9]} 23... Rac8 {[%clk
0:02:37.2]} 24. Kd2 {[%clk 0:01:17.6]} 24... e3+ {[%clk 0:02:36.2]} 25. Kxe3
{[%clk 0:01:14.4]} 25... Rxc2 {[%clk 0:02:36.7]} 26. Rhc1 {[%clk 0:01:12.9]}
26... Rfc8 {[%clk 0:02:34.1]} 27. Rxc2 {[%clk 0:01:11.5]} 27... Rxc2 {[%clk
0:02:35]} 28. a4 {[%clk 0:01:10.7]} 28... d4+ {[%clk 0:02:33.6]} 0-1

[Event "*** Titled Tuesday Blitz"]
[Site "Chess.com"]
[Date "2020.04.28"]
[Round "8"]
[White "thedjoker98"]
[Black "DDTerziev04"]
[Result "1-0"]
[WhiteElo "2517"]
[BlackElo "2341"]
[TimeControl "180+1"]
[EndTime "11:32:09 PDT"]
[Termination "thedjoker98 won by resignation"]

1. d4 {[%clk 0:03:00.9]} 1... d5 {[%clk 0:02:59.4]} 2. c4 {[%clk 0:03:01.1]}
2... dxc4 {[%clk 0:03:00.3]} 3. Nf3 {[%clk 0:03:01]} 3... Nf6 {[%clk 0:03:00.2]}
4. e3 {[%clk 0:03:01.9]} 4... e6 {[%clk 0:03:00.3]} 5. Bxc4 {[%clk 0:03:02.1]}
5... a6 {[%clk 0:03:00.9]} 6. a4 {[%clk 0:03:00]} 6... c5 {[%clk 0:02:57.4]} 7.
O-O {[%clk 0:02:59]} 7... Nc6 {[%clk 0:02:56.9]} 8. Nc3 {[%clk 0:02:56.1]} 8...
Be7 {[%clk 0:02:54.1]} 9. d5 {[%clk 0:02:41.8]} 9... exd5 {[%clk 0:02:53.5]} 10.
Nxd5 {[%clk 0:02:42.7]} 10... Nxd5 {[%clk 0:02:52.1]} 11. Qxd5 {[%clk
0:02:43.6]} 11... Qxd5 {[%clk 0:02:40.6]} 12. Bxd5 {[%clk 0:02:44.5]} 12... Nb4
{[%clk 0:02:41]} 13. Be4 {[%clk 0:02:41.6]} 13... Be6 {[%clk 0:02:32.9]} 14.
Bxb7 {[%clk 0:02:36.2]} 14... Ra7 {[%clk 0:02:31]} 15. Be4 {[%clk 0:02:36.3]}
15... f5 {[%clk 0:02:25.9]} 16. Bb1 {[%clk 0:02:35.9]} 16... Rd7 {[%clk
0:02:13.9]} 17. Bd2 {[%clk 0:02:33.4]} 17... a5 {[%clk 0:02:07.6]} 18. Bc3
{[%clk 0:02:30.3]} 18... O-O {[%clk 0:02:04.1]} 19. Ne5 {[%clk 0:02:29.4]} 19...
Rd6 {[%clk 0:01:58.4]} 20. f4 {[%clk 0:02:26.5]} 20... Rfd8 {[%clk 0:01:56.5]}
21. e4 {[%clk 0:02:21.6]} 21... Rd1 {[%clk 0:01:49]} 22. exf5 {[%clk 0:02:20.8]}
22... Rxf1+ {[%clk 0:01:48.7]} 23. Kxf1 {[%clk 0:02:21.1]} 23... Bc4+ {[%clk
0:01:39.9]} 24. Nxc4 {[%clk 0:02:20.2]} 24... Rd1+ {[%clk 0:01:25.2]} 25. Ke2
{[%clk 0:02:16.3]} 25... Rh1 {[%clk 0:01:23]} 26. f6 {[%clk 0:02:16.4]} 1-0

[Event "*** Titled Tuesday Blitz"]
[Site "Chess.com"]
[Date "2020.04.28"]
[Round "8"]
[White "rasmussvane"]
[Black "SirStrateg"]
[Result "1-0"]
[WhiteElo "2846"]
[BlackElo "2598"]
[TimeControl "180+1"]
[EndTime "11:32:18 PDT"]
[Termination "rasmussvane won by checkmate"]

1. Nf3 {[%clk 0:03:00.5]} 1... d6 {[%clk 0:02:59.8]} 2. d4 {[%clk 0:03:00]} 2...
Nf6 {[%clk 0:02:57.4]} 3. g3 {[%clk 0:02:59.9]} 3... Nbd7 {[%clk 0:02:57.5]} 4.
Bg2 {[%clk 0:02:59.9]} 4... e5 {[%clk 0:02:58.2]} 5. O-O {[%clk 0:02:57.8]} 5...
c6 {[%clk 0:02:58]} 6. c4 {[%clk 0:02:55.4]} 6... Be7 {[%clk 0:02:57.7]} 7. Nc3
{[%clk 0:02:55.9]} 7... O-O {[%clk 0:02:58.3]} 8. e4 {[%clk 0:02:56.4]} 8... a6
{[%clk 0:02:57.9]} 9. a4 {[%clk 0:02:51.1]} 9... a5 {[%clk 0:02:57.8]} 10. h3
{[%clk 0:02:50.5]} 10... Re8 {[%clk 0:02:58]} 11. Be3 {[%clk 0:02:50.4]} 11...
Qc7 {[%clk 0:02:57.3]} 12. Qc2 {[%clk 0:02:50.3]} 12... Bf8 {[%clk 0:02:57.5]}
13. Rfe1 {[%clk 0:02:50]} 13... Nb8 {[%clk 0:02:57.9]} 14. Rad1 {[%clk
0:02:48.9]} 14... Na6 {[%clk 0:02:58.1]} 15. b3 {[%clk 0:02:37.2]} 15... Nb4
{[%clk 0:02:49.2]} 16. Qd2 {[%clk 0:02:36.6]} 16... g6 {[%clk 0:02:44.5]} 17. c5
{[%clk 0:02:30.6]} 17... exd4 {[%clk 0:02:37.3]} 18. Bxd4 {[%clk 0:02:30.3]}
18... Nd7 {[%clk 0:02:23.2]} 19. cxd6 {[%clk 0:02:30]} 19... Qxd6 {[%clk
0:02:18.9]} 20. e5 {[%clk 0:02:26.2]} 20... Qe7 {[%clk 0:02:15.4]} 21. Ne4
{[%clk 0:02:22.7]} 21... Nd5 {[%clk 0:02:14.7]} 22. Nd6 {[%clk 0:01:52]} 22...
h6 {[%clk 0:01:45.6]} 23. Nxe8 {[%clk 0:01:48.9]} 23... Qxe8 {[%clk 0:01:46]}
24. e6 {[%clk 0:01:40.1]} 24... fxe6 {[%clk 0:01:45.8]} 25. h4 {[%clk
0:01:40.3]} 25... Bb4 {[%clk 0:01:34.4]} 26. Qxh6 {[%clk 0:01:38.7]} 26... Bxe1
{[%clk 0:01:34.7]} 27. Qg7# {[%clk 0:01:38.2]} 1-0

[Event "*** Titled Tuesday Blitz"]
[Site "Chess.com"]
[Date "2020.04.28"]
[Round "8"]
[White "ferdipy"]
[Black "aa175"]
[Result "0-1"]
[WhiteElo "2280"]
[BlackElo "2445"]
[TimeControl "180+1"]
[EndTime "11:32:23 PDT"]
[Termination "aa175 won by resignation"]

1. e4 {[%clk 0:03:00.9]} 1... c5 {[%clk 0:02:59.8]} 2. d4 {[%clk 0:02:59.9]}
2... cxd4 {[%clk 0:02:59.4]} 3. c3 {[%clk 0:03:00.4]} 3... Nf6 {[%clk
0:02:59.2]} 4. e5 {[%clk 0:03:00]} 4... Nd5 {[%clk 0:02:58.7]} 5. cxd4 {[%clk
0:02:59.9]} 5... Nc6 {[%clk 0:02:58.9]} 6. Nf3 {[%clk 0:02:59.5]} 6... d6 {[%clk
0:02:59]} 7. h3 {[%clk 0:02:58.6]} 7... g6 {[%clk 0:02:52.9]} 8. a3 {[%clk
0:02:55.7]} 8... Bg7 {[%clk 0:02:53]} 9. exd6 {[%clk 0:02:56.2]} 9... Qxd6
{[%clk 0:02:53.3]} 10. Bd3 {[%clk 0:02:55.8]} 10... O-O {[%clk 0:02:53]} 11. O-O
{[%clk 0:02:50]} 11... Be6 {[%clk 0:02:42.9]} 12. Nc3 {[%clk 0:02:50.9]} 12...
Nxc3 {[%clk 0:02:41.9]} 13. bxc3 {[%clk 0:02:50.6]} 13... Na5 {[%clk 0:02:41.5]}
14. Qe2 {[%clk 0:02:49.5]} 14... Rac8 {[%clk 0:02:40.2]} 15. Bd2 {[%clk
0:02:47.9]} 15... Nb3 {[%clk 0:02:35.5]} 16. Rab1 {[%clk 0:02:39.6]} 16... Nxd2
{[%clk 0:02:35]} 17. Qxd2 {[%clk 0:02:38]} 17... Qxa3 {[%clk 0:02:35.2]} 18.
Rxb7 {[%clk 0:02:36]} 18... Qxc3 {[%clk 0:02:33]} 19. Rxa7 {[%clk 0:02:30.3]}
19... Qxd2 {[%clk 0:02:29.4]} 20. Nxd2 {[%clk 0:02:30.4]} 20... Bxd4 {[%clk
0:02:25.2]} 21. Rxe7 {[%clk 0:02:28.9]} 21... Bc5 {[%clk 0:02:22.8]} 22. Rxe6
{[%clk 0:02:13.1]} 22... fxe6 {[%clk 0:02:23.7]} 23. Bc4 {[%clk 0:02:13.3]}
23... Kf7 {[%clk 0:02:13.6]} 24. Nf3 {[%clk 0:02:12.8]} 24... Ke7 {[%clk
0:02:09.2]} 25. Re1 {[%clk 0:02:10.7]} 25... Bxf2+ {[%clk 0:02:08.3]} 26. Kxf2
{[%clk 0:02:09]} 26... Rxc4 {[%clk 0:02:09.2]} 27. Kg3 {[%clk 0:02:08]} 27...
Rc3 {[%clk 0:02:01.1]} 28. Kg4 {[%clk 0:02:01.9]} 28... Rf5 {[%clk 0:01:45.4]}
29. Re4 {[%clk 0:01:55.5]} 29... Kf6 {[%clk 0:01:42.2]} 30. h4 {[%clk 0:01:51]}
30... Rc2 {[%clk 0:01:35.3]} 31. g3 {[%clk 0:01:46.5]} 31... h5+ {[%clk
0:01:32.6]} 0-1

[Event "*** Titled Tuesday Blitz"]
[Site "Chess.com"]
[Date "2020.04.28"]
[Round "8"]
[White "StephenDedalus83"]
[Black "NewBornNow"]
[Result "1-0"]
[WhiteElo "2794"]
[BlackElo "2622"]
[TimeControl "180+1"]
[EndTime "11:32:37 PDT"]
[Termination "StephenDedalus83 won by resignation"]

1. e4 {[%clk 0:03:00.9]} 1... c5 {[%clk 0:02:59.1]} 2. Nf3 {[%clk 0:03:00.7]}
2... e6 {[%clk 0:02:58.9]} 3. d4 {[%clk 0:03:00.4]} 3... cxd4 {[%clk 0:02:59]}
4. Nxd4 {[%clk 0:03:01]} 4... a6 {[%clk 0:02:59.2]} 5. Nc3 {[%clk 0:02:58.6]}
5... d6 {[%clk 0:02:58.1]} 6. g3 {[%clk 0:02:58.8]} 6... b5 {[%clk 0:02:56.6]}
7. Bg2 {[%clk 0:02:58.8]} 7... Bb7 {[%clk 0:02:56.7]} 8. O-O {[%clk 0:02:59.3]}
8... Nf6 {[%clk 0:02:56.4]} 9. Re1 {[%clk 0:02:56.2]} 9... Nbd7 {[%clk
0:02:55.2]} 10. e5 {[%clk 0:02:50.9]} 10... Bxg2 {[%clk 0:02:51.7]} 11. exf6
{[%clk 0:02:50.9]} 11... Bb7 {[%clk 0:02:49.3]} 12. Nxe6 {[%clk 0:02:02.1]}
12... fxe6 {[%clk 0:02:48.4]} 13. fxg7 {[%clk 0:01:51.4]} 13... Bxg7 {[%clk
0:02:46.6]} 14. Rxe6+ {[%clk 0:01:51.4]} 14... Kf7 {[%clk 0:02:42.8]} 15. Rxd6
{[%clk 0:01:51.4]} 15... Ne5 {[%clk 0:02:17.7]} 16. Qh5+ {[%clk 0:01:45.1]}
16... Kg8 {[%clk 0:02:15]} 17. Rxd8+ {[%clk 0:01:41.5]} 17... Rxd8 {[%clk
0:02:14.8]} 18. Bg5 {[%clk 0:01:41.3]} 18... Nf3+ {[%clk 0:02:08.3]} 19. Kf1
{[%clk 0:01:41]} 19... Rf8 {[%clk 0:02:05.1]} 20. Rd1 {[%clk 0:01:35.4]} 20...
h6 {[%clk 0:01:55.1]} 21. Be7 {[%clk 0:01:25.8]} 21... Rc8 {[%clk 0:01:35.6]}
22. Nd5 {[%clk 0:01:17.7]} 1-0

[Event "*** Titled Tuesday Blitz"]
[Site "Chess.com"]
[Date "2020.04.28"]
[Round "8"]
[White "TheFireChess"]
[Black "Kildepiotr"]
[Result "1-0"]
[WhiteElo "2452"]
[BlackElo "2558"]
[TimeControl "180+1"]
[EndTime "11:32:39 PDT"]
[Termination "TheFireChess won by resignation"]

1. e4 {[%clk 0:03:00.9]} 1... g6 {[%clk 0:02:59.4]} 2. d4 {[%clk 0:03:00.5]}
2... Bg7 {[%clk 0:02:59.6]} 3. Be3 {[%clk 0:03:01.2]} 3... c6 {[%clk 0:02:59.8]}
4. Qd2 {[%clk 0:03:00.3]} 4... d5 {[%clk 0:02:56.9]} 5. exd5 {[%clk 0:03:00.5]}
5... cxd5 {[%clk 0:02:56.6]} 6. h3 {[%clk 0:02:58.7]} 6... Nc6 {[%clk
0:02:56.1]} 7. Nf3 {[%clk 0:02:58.9]} 7... Nf6 {[%clk 0:02:53.6]} 8. Bd3 {[%clk
0:02:58.1]} 8... O-O {[%clk 0:02:50.8]} 9. O-O {[%clk 0:02:54.7]} 9... Bf5
{[%clk 0:02:50.1]} 10. Bxf5 {[%clk 0:02:48.5]} 10... gxf5 {[%clk 0:02:51]} 11.
c3 {[%clk 0:02:48.8]} 11... Ne4 {[%clk 0:02:50.2]} 12. Qe2 {[%clk 0:02:47.3]}
12... Kh8 {[%clk 0:02:48]} 13. Nbd2 {[%clk 0:02:41.1]} 13... e6 {[%clk
0:02:46.2]} 14. Bf4 {[%clk 0:02:28.7]} 14... Rg8 {[%clk 0:02:44.3]} 15. Nxe4
{[%clk 0:02:16.1]} 15... fxe4 {[%clk 0:02:44.1]} 16. Ng5 {[%clk 0:02:16.5]}
16... Qf6 {[%clk 0:02:30.2]} 17. Qh5 {[%clk 0:02:14.9]} 17... h6 {[%clk
0:02:29.9]} 18. Nxf7+ {[%clk 0:02:08.9]} 18... Kh7 {[%clk 0:02:29.9]} 19. Be3
{[%clk 0:01:25.1]} 19... Raf8 {[%clk 0:02:04.4]} 20. Ng5+ {[%clk 0:01:21.9]}
20... Kh8 {[%clk 0:02:04.2]} 21. f3 {[%clk 0:01:21.8]} 21... exf3 {[%clk
0:01:44]} 22. Rxf3 {[%clk 0:01:22.7]} 22... Qe7 {[%clk 0:01:41.2]} 23. Nf7+
{[%clk 0:01:18.9]} 23... Kh7 {[%clk 0:01:40.4]} 24. Bxh6 {[%clk 0:01:13.4]} 1-0

[Event "*** Titled Tuesday Blitz"]
[Site "Chess.com"]
[Date "2020.04.28"]
[Round "8"]
[White "KinKaiser"]
[Black "VitaliyBernadskiy"]
[Result "1-0"]
[WhiteElo "2575"]
[BlackElo "2700"]
[TimeControl "180+1"]
[EndTime "11:32:40 PDT"]
[Termination "KinKaiser won by resignation"]

1. d4 {[%clk 0:03:00.9]} 1... Nf6 {[%clk 0:02:58.3]} 2. Nf3 {[%clk 0:03:01.1]}
2... g6 {[%clk 0:02:58.4]} 3. Bf4 {[%clk 0:03:01.2]} 3... Bg7 {[%clk 0:02:58.4]}
4. e3 {[%clk 0:03:01.5]} 4... O-O {[%clk 0:02:58.4]} 5. h3 {[%clk 0:03:01.5]}
5... d6 {[%clk 0:02:58.2]} 6. Be2 {[%clk 0:03:00.7]} 6... c5 {[%clk 0:02:57.4]}
7. c3 {[%clk 0:03:00.7]} 7... cxd4 {[%clk 0:02:49]} 8. exd4 {[%clk 0:02:58.9]}
8... Nc6 {[%clk 0:02:49.5]} 9. O-O {[%clk 0:02:58.1]} 9... Nd5 {[%clk
0:02:49.5]} 10. Bh2 {[%clk 0:02:55.4]} 10... e5 {[%clk 0:02:49.7]} 11. Na3
{[%clk 0:02:46.4]} 11... e4 {[%clk 0:02:44.1]} 12. Nd2 {[%clk 0:02:40.2]} 12...
e3 {[%clk 0:02:42.6]} 13. Ndc4 {[%clk 0:02:30.7]} 13... Bh6 {[%clk 0:02:38.5]}
14. fxe3 {[%clk 0:02:19.1]} 14... Nxe3 {[%clk 0:02:37.1]} 15. Nxe3 {[%clk
0:02:17.8]} 15... Bxe3+ {[%clk 0:02:38]} 16. Kh1 {[%clk 0:02:18]} 16... d5
{[%clk 0:02:32.1]} 17. Bf3 {[%clk 0:02:09.5]} 17... Be6 {[%clk 0:02:31.1]} 18.
Nb5 {[%clk 0:02:02]} 18... Qh4 {[%clk 0:02:23.6]} 19. Qe1 {[%clk 0:01:52.5]}
19... Bg5 {[%clk 0:02:15.2]} 20. Nc7 {[%clk 0:01:37.7]} 20... Rad8 {[%clk
0:02:06.6]} 21. Bg3 {[%clk 0:01:27.8]} 21... Qh6 {[%clk 0:02:01.6]} 22. Nxe6
{[%clk 0:01:26.5]} 22... Rfe8 {[%clk 0:01:58.6]} 23. Nxd8 {[%clk 0:01:14.7]}
23... Rxe1 {[%clk 0:01:54.8]} 24. Raxe1 {[%clk 0:01:13.7]} 24... Bxd8 {[%clk
0:01:54.2]} 25. Re8+ {[%clk 0:01:12.6]} 25... Kg7 {[%clk 0:01:53.9]} 26. Bxd5
{[%clk 0:01:09.8]} 26... Qg5 {[%clk 0:01:50.7]} 27. Rxf7+ {[%clk 0:01:07.8]}
27... Kh6 {[%clk 0:01:50.8]} 28. Bf4 {[%clk 0:01:06.9]} 1-0

[Event "*** Titled Tuesday Blitz"]
[Site "Chess.com"]
[Date "2020.04.28"]
[Round "8"]
[White "TudorAnton"]
[Black "SamuelGhimpu2003"]
[Result "0-1"]
[WhiteElo "2521"]
[BlackElo "2694"]
[TimeControl "180+1"]
[EndTime "11:32:48 PDT"]
[Termination "SamuelGhimpu2003 won by resignation"]

1. d4 {[%clk 0:03:00.9]} 1... Nf6 {[%clk 0:02:59.9]} 2. Nf3 {[%clk 0:02:58.7]}
2... g6 {[%clk 0:02:59.9]} 3. c4 {[%clk 0:02:58.1]} 3... Bg7 {[%clk 0:02:59.7]}
4. g3 {[%clk 0:02:58.8]} 4... c6 {[%clk 0:02:59.1]} 5. Bg2 {[%clk 0:02:59.1]}
5... d5 {[%clk 0:03:00]} 6. O-O {[%clk 0:02:59.5]} 6... O-O {[%clk 0:03:00.1]}
7. Nbd2 {[%clk 0:03:00.1]} 7... Bf5 {[%clk 0:02:58.5]} 8. b3 {[%clk 0:02:59.5]}
8... Ne4 {[%clk 0:02:55.5]} 9. Bb2 {[%clk 0:02:59]} 9... Nd7 {[%clk 0:02:41.4]}
10. e3 {[%clk 0:02:57.6]} 10... a5 {[%clk 0:02:36.7]} 11. Nh4 {[%clk 0:02:55]}
11... Nxd2 {[%clk 0:02:31]} 12. Qxd2 {[%clk 0:02:55.9]} 12... Be6 {[%clk
0:02:30.8]} 13. f4 {[%clk 0:02:52.9]} 13... Nf6 {[%clk 0:02:28.2]} 14. Rac1
{[%clk 0:02:46.9]} 14... Qd7 {[%clk 0:02:23.9]} 15. a4 {[%clk 0:02:38.4]} 15...
Bh3 {[%clk 0:02:19.5]} 16. Ba3 {[%clk 0:02:33.3]} 16... Bxg2 {[%clk 0:02:19.1]}
17. Qxg2 {[%clk 0:02:33.9]} 17... Ne4 {[%clk 0:02:06.4]} 18. f5 {[%clk
0:02:31.5]} 18... Bf6 {[%clk 0:02:05.4]} 19. Qh3 {[%clk 0:02:25.7]} 19... Rfe8
{[%clk 0:01:30.4]} 20. g4 {[%clk 0:02:16.7]} 20... e6 {[%clk 0:01:26.3]} 21.
fxg6 {[%clk 0:02:10.7]} 21... hxg6 {[%clk 0:01:27.2]} 22. Rxf6 {[%clk
0:02:08.1]} 22... Nxf6 {[%clk 0:01:26.9]} 23. Rf1 {[%clk 0:02:08.9]} 23... Ne4
{[%clk 0:01:25]} 24. Nf3 {[%clk 0:02:05.2]} 24... f6 {[%clk 0:01:17]} 25. g5
{[%clk 0:02:04.8]} 25... f5 {[%clk 0:01:16.4]} 26. Ne5 {[%clk 0:02:01]} 26...
Qh7 {[%clk 0:01:16.3]} 27. Qg3 {[%clk 0:01:56.9]} 27... Kg7 {[%clk 0:01:16.4]}
28. Nf3 {[%clk 0:01:39.7]} 28... Nxg3 {[%clk 0:01:15.1]} 0-1